Workbook

Sheet Documentation (hidden)
A1: K303 - Project 5 | C1: Problem 1
A2: Spring 2020
A4: Username: | C4: RASHAR | E4: Class Number: | G4: 7123
A5: Prepared by: | C5: Raunav Sharma | E5: Lab Instructor's Name: | G5: Taryn Malher
A6: Today is: | C6: =TODAY() -> 2020-06-19

Sheet Model and simulation (hidden)
A1: Cost model | M1: Simulation
A3: Item | B3: Min | C3: Most likely (i.e., mode) | D3: Max | E3: PERT mean | F3: PERT alpha | G3: PERT beta | H3: BETA.INV | J3: "Base-case" total (sum of most likely figures)
A4: Construction Plans & Specs | B4: 700 | C4: 800 | D4: 1500 | E4: =(B4+4*C4+D4)/6 -> 900 | F4: =6*(E4-B4)/(D4-B4) -> 1.5 | G4: =6*(D4-E4)/(D4-B4) -> 4.5 | H4: =_xlfn.BETA.INV(RAND(),F4,G4,B4,D4) -> 1168.258688 | J4: =SUM(C4:C31) -> 97000
A5: Building Permit | B5: 3600 | C5: 3800 | D5: 4500 | E5: =(B5+4*C5+D5)/6 -> 3883.333333 | F5: =6*(E5-B5)/(D5-B5) -> 1.888888889 | G5: =6*(D5-E5)/(D5-B5) -> 4.111111111 | H5: =_xlfn.BETA.INV(RAND(),F5,G5,B5,D5) -> 3708.098757
A6: Excavation | B6: 1400 | C6: 1500 | D6: 2000 | E6: 1566.666667 | F6: 1.666666667 | G6: 4.333333333 | H6: 1432.912661 | J6: Probabilistic total (sum of all BETA.INV functions) | M6: =J7 -> 98870.09979 | N6: Probabilistic total cost | O6: Site work | P6: Foundations | Q6: Framing | R6: Exterior finishes | S6: Major systems | T6: Interior finishes
A7: Utilities | B7: 2100 | C7: 2300 | D7: 2900 | E7: 2366.666667 | F7: 2 | G7: 4 | H7: 2502.535019 | J7: =SUM(H4:H31) -> 98870.09979 | M7: Data table corner cell | N7: =J7 -> 98870.09979 | O7: =K10 -> 11351.52502 | P7: =K11 -> 11972.24506 | Q7: =K12 -> 7799.434427 | R7: =K13 -> 22444.65148 | S7: =K14 -> 15368.89716 | T7: =K15 -> 28877.57309
A8: Utility Connection Fees | B8: 3800 | C8: 4000 | D8: 4400 | E8: 4033.333333 | F8: 2.333333333 | G8: 3.666666667 | H8: 3972.63256 | M8: 1 | N8: 98761.62143 | O8: 10895.26153 | P8: 12470.2239 | Q8: 8109.609705 | R8: 20796.2683 | S8: 15180.2988 | T8: 30176.44456
A9: Building Concrete | B9: 6500 | C9: 7000 | D9: 10500 | E9: 7500 | F9: 1.5 | G9: 4.5 | H9: 7607.416706 | I9: Work package | K9: Probabilistic total | M9: 2 | N9: 99076.70982 | O9: 11006.53125 | P9: 12167.17618 | Q9: 7487.129646 | R9: 21286.34319 | S9: 15553.16119 | T9: 30728.14868
A10: Outside Concrete | B10: 2800 | C10: 3100 | D10: 4500 | E10: 3283.333333 | F10: 1.705882353 | G10: 4.294117647 | H10: 2931.91569 | I10: 1 | J10: Site work | K10: =SUM(H4:H5,H7,H8) -> 11351.52502 | M10: 3 | N10: 97054.57424 | O10: 10661.04712 | P10: 11618.95293 | Q10: 7311.462505 | R10: 20998.09295 | S10: 15853.80064 | T10: 29777.80072
A11: Rough Carpentry | B11: 6700 | C11: 7500 | D11: 9000 | E11: 7616.666667 | F11: 2.391304348 | G11: 3.608695652 | H11: 7799.434427 | I11: 2 | J11: Foundations | K11: =SUM(H6,H9:H10) -> 11972.24506 | M11: 4 | N11: 98120.96083 | O11: 11181.23264 | P11: 11555.87152 | Q11: 7074.612541 | R11: 21044.31011 | S11: 16876.2745 | T11: 29477.23118
A12: Cabinets | B12: 5300 | C12: 5600 | D12: 6500 | E12: 5700 | F12: 2 | G12: 4 | H12: 5563.450208 | I12: 3 | J12: Framing | K12: =H11 -> 7799.434427 | M12: 5 | N12: 98554.262 | O12: 11372.40898 | P12: 11592.54041 | Q12: 7877.777998 | R12: 20955.17935 | S12: 16522.63402 | T12: 29117.24135
A13: Finish Carpentry | B13: 1400 | C13: 1500 | D13: 1700 | E13: 1516.666667 | F13: 2.333333333 | G13: 3.666666667 | H13: 1554.247116 | I13: 4 | J13: Exterior finishes | K13: =SUM(H15,H17:H18,H20) -> 22444.65148 | M13: 6 | N13: 99288.02083 | O13: 11427.82429 | P13: 14151.9686 | Q13: 7274.184767 | R13: 20296.2967 | S13: 15891.84015 | T13: 29396.17875
A14: Interior Doors | B14: 1500 | C14: 1700 | D14: 2000 | E14: 1716.666667 | F14: 2.6 | G14: 3.4 | H14: 1811.551914 | I14: 5 | J14: Major systems | K14: =SUM(H24,H27:H28,H30) -> 15368.89716 | M14: 7 | N14: 98504.36376 | O14: 10888.60436 | P14: 11675.28487 | Q14: 7756.38842 | R14: 21661.96465 | S14: 16024.30996 | T14: 29409.50679
A15: Exterior Doors | B15: 1900 | C15: 2100 | D15: 2300 | E15: 2100 | F15: 3 | G15: 3 | H15: 2067.277976 | I15: 6 | J15: Interior finishes | K15: =SUM(H12:H14,H16,H19,H21:H23,H25:H26,H29) -> 28877.57309 | M15: 8 | N15: 99717.35991 | O15: 10686.26561 | P15: 14405.42088 | Q15: 7236.078844 | R15: 20595.44156 | S15: 15936.54903 | T15: 29826.32235
A16: Insulation | B16: 2500 | C16: 2800 | D16: 3200 | E16: 2816.666667 | F16: 2.714285714 | G16: 3.285714286 | H16: 2666.817823 | M16: 9 | N16: 99856.02162 | O16: 10705.65852 | P16: 11632.04779 | Q16: 7951.230704 | R16: 22193.01266 | S16: 16460.2681 | T16: 29921.83385
A17: Exterior Siding | B17: 14000 | C17: 15000 | D17: 20000 | E17: 15666.66667 | F17: 1.666666667 | G17: 4.333333333 | H17: 16178.58504 | M17: 10 | N17: 100152.2933 | O17: 11843.1224 | P17: 11292.05858 | Q17: 7569.08981 | R17: 22844.53616 | S17: 15688.64177 | T17: 29880.86845
A18: Roofing | B18: 2000 | C18: 2200 | D18: 3100 | E18: 2316.666667 | F18: 1.727272727 | G18: 4.272727273 | H18: 2074.69812 | M18: 11 | N18: 97044.07485 | O18: 10894.73516 | P18: 12499.61895 | Q18: 6839.768355 | R18: 21089.4714 | S18: 15821.7498 | T18: 29000.57198
A19: Hardware | B19: 250 | C19: 300 | D19: 400 | E19: 308.3333333 | F19: 2.333333333 | G19: 3.666666667 | H19: 291.9102711 | M19: 12 | N19: 97233.56575 | O19: 11409.14869 | P19: 12594.71084 | Q19: 6960.676174 | R19: 21398.10505 | S19: 14943.41336 | T19: 28967.13658
A20: Windows | B20: 1500 | C20: 1800 | D20: 2500 | E20: 1866.666667 | F20: 2.2 | G20: 3.8 | H20: 2124.090348 | M20: 13 | N20: 99658.74067 | O20: 10955.9443 | P20: 13766.36354 | Q20: 7772.613604 | R20: 22174.87016 | S20: 15534.03105 | T20: 28549.58197
A21: Drywall | B21: 4000 | C21: 5000 | D21: 6000 | E21: 5000 | F21: 3 | G21: 3 | H21: 4715.283623 | M21: 14 | N21: 100759.8436 | O21: 11324.99864 | P21: 12262.7907 | Q21: 7614.062277 | R21: 22613.02216 | S21: 15733.73764 | T21: 30227.89698
A22: Painting | B22: 2000 | C22: 2200 | D22: 2500 | E22: 2216.666667 | F22: 2.6 | G22: 3.4 | H22: 2256.935667 | M22: 15 | N22: 98244.365 | O22: 10668.46613 | P22: 11882.67403 | Q22: 8199.735417 | R22: 21708.86022 | S22: 15516.92561 | T22: 29236.3554
A23: Floor Covering | B23: 5800 | C23: 6200 | D23: 6600 | E23: 6200 | F23: 3 | G23: 3 | H23: 6178.575846 | M23: 16 | N23: 100053.5066 | O23: 11551.63403 | P23: 12141.08641 | Q23: 7450.220484 | R23: 22193.78805 | S23: 15899.11283 | T23: 29837.28009
A24: Plumbing | B24: 5500 | C24: 6300 | D24: 7500 | E24: 6366.666667 | F24: 2.6 | G24: 3.4 | H24: 6205.763092 | M24: 17 | N24: 99656.51086 | O24: 10687.44964 | P24: 12589.02715 | Q24: 7791.702264 | R24: 20808.5233 | S24: 16236.25432 | T24: 30515.4844
A25: Bath Acces. & Mirrors | B25: 300 | C25: 400 | D25: 550 | E25: 408.3333333 | F25: 2.6 | G25: 3.4 | H25: 344.6344467 | M25: 18 | N25: 98482.54633 | O25: 11247.62352 | P25: 12635.27535 | Q25: 7777.446916 | R25: 21292.43008 | S25: 14960.12777 | T25: 29433.17668
A26: Appliances | B26: 2500 | C26: 2800 | D26: 3500 | E26: 2866.666667 | F26: 2.2 | G26: 3.8 | H26: 2580.023153 | M26: 19 | N26: 98133.4002 | O26: 11531.70231 | P26: 13130.64561 | Q26: 7189.32084 | R26: 20693.8395 | S26: 15363.21533 | T26: 29380.1421
A27: HVAC System | B27: 4300 | C27: 4500 | D27: 5000 | E27: 4550 | F27: 2.142857143 | G27: 3.857142857 | H27: 4620.174254 | M27: 20 | N27: 98311.45274 | O27: 11021.97436 | P27: 12500.4796 | Q27: 7350.126215 | R27: 21822.16591 | S27: 15135.71352 | T27: 29443.28509
A28: Electrical | B28: 1900 | C28: 2200 | D28: 2600 | E28: 2216.666667 | F28: 2.714285714 | G28: 3.285714286 | H28: 2071.614361 | M28: 21 | N28: 98048.63946 | O28: 10920.64814 | P28: 11359.95075 | Q28: 7609.148001 | R28: 22054.80625 | S28: 16160.90819 | T28: 29097.69702
A29: Light Fixtures | B29: 850 | C29: 900 | D29: 1000 | E29: 908.3333333 | F29: 2.333333333 | G29: 3.666666667 | H29: 914.1430186 | M29: 22 | N29: 100251.6236 | O29: 11358.65885 | P29: 14098.04074 | Q29: 7109.429496 | R29: 22204.38334 | S29: 15493.84076 | T29: 29212.4089
A30: Fire Protection | B30: 2300 | C30: 2500 | D30: 2700 | E30: 2500 | F30: 3 | G30: 3 | H30: 2471.345455 | M30: 23 | N30: 101684.6988 | O30: 11151.6554 | P30: 13941.81997 | Q30: 8575.574937 | R30: 21627.74438 | S30: 15593.35848 | T30: 29699.77036
A31: Final Cleanup | B31: 700 | C31: 1000 | D31: 1300 | E31: 1000 | F31: 3 | G31: 3 | H31: 1055.773552 | M31: 24 | N31: 100162.9706 | O31: 11110.28865 | P31: 12462.31486 | Q31: 7768.923059 | R31: 21831.94195 | S31: 16114.7639 | T31: 29851.71505
M32: 25 | N32: 102734.4578 | O32: 11296.58774 | P32: 12982.72219 | Q32: 8163.378567 | R32: 22703.26163 | S32: 16232.54642 | T32: 30221.53362
M33: 26 | N33: 98727.77234 | O33: 11611.88972 | P33: 12115.75556 | Q33: 7610.297005 | R33: 22377.20693 | S33: 15838.30125 | T33: 28319.93154
M34: 27 | N34: 101143.2842 | O34: 11239.21749 | P34: 13477.25844 | Q34: 7530.991431 | R34: 21326.30845 | S34: 16457.94153 | T34: 30104.48434
M35: 28 | N35: 99281.87412 | O35: 11049.05851 | P35: 12423.09711 | Q35: 7368.358767 | R35: 22168.05071 | S35: 15727.64762 | T35: 29674.11329
M36: 29 | N36: 101338.4708 | O36: 11107.30657 | P36: 13180.14125 | Q36: 7338.159032 | R36: 22998.88998 | S36: 16302.56462 | T36: 29343.01144
M37: 30 | N37: 97599.09235 | O37: 11587.99984 | P37: 12008.08754 | Q37: 7698.070741 | R37: 20979.35488 | S37: 15209.97982 | T37: 29161.11164
M38: 31 | N38: 97683.54041 | O38: 10889.68482 | P38: 13715.74386 | Q38: 6924.594568 | R38: 20362.85206 | S38: 15699.9171 | T38: 29056.22985
M39: 32 | N39: 100358.7185 | O39: 10668.34545 | P39: 11526.12239 | Q39: 7427.667782 | R39: 25243.90067 | S39: 15522.49086 | T39: 28916.63004
M40: 33 | N40: 99285.64308 | O40: 11310.94087 | P40: 11405.38143 | Q40: 8340.175172 | R40: 20943.60957 | S40: 16172.58362 | T40: 30004.09153
M41: 34 | N41: 98209.60439 | O41: 10802.59647 | P41: 11305.78989 | Q41: 7305.425983 | R41: 22843.36323 | S41: 15617.87194 | T41: 29494.42569
M42: 35 | N42: 102861.8729 | O42: 11431.44552 | P42: 12056.91099 | Q42: 7470.672319 | R42: 25734.8384 | S42: 15699.87234 | T42: 29398.91327
M43: 36 | N43: 101460.2563 | O43: 11262.12599 | P43: 13598.61811 | Q43: 7076.694599 | R43: 22108.92767 | S43: 15976.33425 | T43: 30486.93281
M44: 37 | N44: 99213.66257 | O44: 12059.32717 | P44: 11772.70734 | Q44: 7386.36886 | R44: 21817.31422 | S44: 15805.98644 | T44: 29416.57151
M45: 38 | N45: 101390.9189 | O45: 10977.82375 | P45: 12702.58269 | Q45: 8071.621101 | R45: 22685.9323 | S45: 15563.44106 | T45: 30175.14943
M46: 39 | N46: 102636.7951 | O46: 11423.88883 | P46: 13604.24199 | Q46: 7544.090862 | R46: 23503.17906 | S46: 15197.46421 | T46: 30227.76935
M47: 40 | N47: 102321.0743 | O47: 11089.96345 | P47: 11960.36712 | Q47: 7357.406331 | R47: 23991.52223 | S47: 15899.35002 | T47: 31084.32639
M48: 41 | N48: 101073.1599 | O48: 10885.57883 | P48: 12346.45077 | Q48: 8418.387075 | R48: 22988.67627 | S48: 15515.68474 | T48: 29862.27213
M49: 42 | N49: 100901.5945 | O49: 10992.20616 | P49: 12457.2819 | Q49: 8140.208983 | R49: 22286.24975 | S49: 16010.08509 | T49: 29940.92509
M50: 43 | N50: 98303.61067 | O50: 10883.75534 | P50: 12812.7738 | Q50: 7195.4137 | R50: 21051.27746 | S50: 15288.42352 | T50: 29948.79778
M51: 44 | N51: 100803.8611 | O51: 11008.87558 | P51: 13179.57287 | Q51: 6933.839073 | R51: 22032.36352 | S51: 16550.82013 | T51: 30123.15417
M52: 45 | N52: 100135.2175 | O52: 11339.76131 | P52: 13024.03203 | Q52: 7406.960752 | R52: 22201.34575 | S52: 15255.70233 | T52: 29831.71721
M53: 46 | N53: 97905.31814 | O53: 10988.3668 | P53: 11503.43708 | Q53: 7652.827252 | R53: 22298.16703 | S53: 15332.3564 | T53: 29149.03908
M54: 47 | N54: 98945.46229 | O54: 10904.41264 | P54: 12198.32583 | Q54: 7279.822375 | R54: 22023.91316 | S54: 15559.55053 | T54: 29795.25987
M55: 48 | N55: 99190.81218 | O55: 10963.53698 | P55: 13282.4082 | Q55: 7853.440868 | R55: 21412.10692 | S55: 15876.26636 | T55: 28762.38832
M56: 49 | N56: 98912.4948 | O56: 11111.62308 | P56: 12318.40324 | Q56: 7064.046418 | R56: 22088.20941 | S56: 15848.16267 | T56: 29629.1518
M57: 50 | N57: 100654.5706 | O57: 11147.83995 | P57: 12065.61678 | Q57: 7741.723321 | R57: 23174.59759 | S57: 15523.83083 | T57: 30013.02071
M58: 51 | N58: 101249.647 | O58: 11050.899 | P58: 13814.50707 | Q58: 7333.42568 | R58: 21773.20352 | S58: 16039.22804 | T58: 30058.47611
M59: 52 | N59: 97842.51054 | O59: 11590.84569 | P59: 10934.18207 | Q59: 7725.353706 | R59: 20653.04962 | S59: 16149.53823 | T59: 29909.74817
M60: 53 | N60: 99158.48143 | O60: 11966.39743 | P60: 12245.78582 | Q60: 7603.776349 | R60: 20767.13662 | S60: 16055.03181 | T60: 29527.21672
M61: 54 | N61: 100099.9153 | O61: 11305.94536 | P61: 11467.15777 | Q61: 7544.440991 | R61: 23655.37543 | S61: 15533.63764 | T61: 29604.47764
M62: 55 | N62: 102604.2902 | O62: 11351.41317 | P62: 12602.2528 | Q62: 7929.157989 | R62: 23011.12729 | S62: 16517.54311 | T62: 30262.07331
M63: 56 | N63: 99304.89269 | O63: 10573.37021 | P63: 11501.10484 | Q63: 7739.469617 | R63: 22724.56811 | S63: 15409.18323 | T63: 30232.87206
M64: 57 | N64: 102660.9232 | O64: 11465.7523 | P64: 12689.75817 | Q64: 7662.379886 | R64: 24121.40899 | S64: 15898.24404 | T64: 29752.59926
M65: 58 | N65: 97386.48406 | O65: 10893.43984 | P65: 12758.5123 | Q65: 7734.173386 | R65: 20212.09598 | S65: 15525.12022 | T65: 29381.83209
M66: 59 | N66: 98788.69174 | O66: 11097.04319 | P66: 12350.0927 | Q66: 7711.412863 | R66: 21401.61658 | S66: 15822.54689 | T66: 29304.33713
M67: 60 | N67: 103590.6129 | O67: 10916.01814 | P67: 14164.73037 | Q67: 8463.676302 | R67: 23020.5031 | S67: 15955.74108 | T67: 30148.41973
M68: 61 | N68: 98753.53206 | O68: 10930.35501 | P68: 12253.58012 | Q68: 7989.535616 | R68: 21546.81823 | S68: 15334.327 | T68: 29572.19232
M69: 62 | N69: 101362.634 | O69: 11539.05142 | P69: 13058.68284 | Q69: 7311.797254 | R69: 23808.28369 | S69: 16196.13688 | T69: 28381.0797
M70: 63 | N70: 98896.31337 | O70: 11324.56389 | P70: 11541.44702 | Q70: 7349.616922 | R70: 22277.20809 | S70: 15335.87679 | T70: 30005.54755
M71: 64 | N71: 98294.9992 | O71: 11085.20502 | P71: 12097.96109 | Q71: 8378.081725 | R71: 20784.58229 | S71: 15037.16574 | T71: 29832.92455
M72: 65 | N72: 96853.61463 | O72: 11012.25767 | P72: 11531.35934 | Q72: 7185.30389 | R72: 21966.17132 | S72: 15211.82077 | T72: 29042.15194
M73: 66 | N73: 103598.4301 | O73: 11692.88229 | P73: 12937.445 | Q73: 7878.168953 | R73: 24144.24295 | S73: 16075.94993 | T73: 29706.0426
M74: 67 | N74: 98830.1588 | O74: 10888.65111 | P74: 11866.2775 | Q74: 7414.41326 | R74: 23171.41919 | S74: 15230.59879 | T74: 29115.2772
M75: 68 | N75: 99956.07646 | O75: 10869.79136 | P75: 11587.20194 | Q75: 7455.65468 | R75: 22799.85896 | S75: 16466.6793 | T75: 29641.09675
M76: 69 | N76: 99772.36503 | O76: 11240.13404 | P76: 13280.76748 | Q76: 7405.190439 | R76: 21937.50551 | S76: 15012.14698 | T76: 29919.21905
M77: 70 | N77: 99074.91833 | O77: 11267.03012 | P77: 12004.80972 | Q77: 7868.39851 | R77: 21233.65359 | S77: 15686.50651 | T77: 29876.10804
M78: 71 | N78: 99022.37349 | O78: 11587.33036 | P78: 11683.16737 | Q78: 8149.756696 | R78: 20336.75469 | S78: 16343.2388 | T78: 30001.51898
M79: 72 | N79: 100697.178 | O79: 11193.25283 | P79: 13447.6743 | Q79: 7216.560656 | R79: 21492.2848 | S79: 16495.51265 | T79: 29858.55417
M80: 73 | N80: 100458.1891 | O80: 11131.8232 | P80: 11964.05257 | Q80: 8063.515698 | R80: 23836.28901 | S80: 15509.30629 | T80: 28857.03425
M81: 74 | N81: 98870.42337 | O81: 11773.69927 | P81: 11954.7357 | Q81: 7532.605641 | R81: 20990.56312 | S81: 15180.64312 | T81: 30290.86958
M82: 75 | N82: 103587.5626 | O82: 11474.53171 | P82: 11821.23468 | Q82: 7875.042406 | R82: 24982.35866 | S82: 16324.32561 | T82: 29995.40684
M83: 76 | N83: 101122.8634 | O83: 11170.77571 | P83: 13358.21835 | Q83: 8334.886761 | R83: 21238.81674 | S83: 16304.9258 | T83: 29755.38842
M84: 77 | N84: 103196.9814 | O84: 11333.1026 | P84: 13236.51711 | Q84: 7761.468311 | R84: 24665.10187 | S84: 15789.21233 | T84: 29540.29969
M85: 78 | N85: 101273.0906 | O85: 11348.04199 | P85: 12651.235 | Q85: 7451.880458 | R85: 21837.39597 | S85: 16102.84281 | T85: 30657.86592
M86: 79 | N86: 99163.12543 | O86: 10786.92974 | P86: 12329.42188 | Q86: 8133.625673 | R86: 22491.51365 | S86: 15374.16135 | T86: 29108.79205
M87: 80 | N87: 100410.0533 | O87: 11015.33661 | P87: 13419.06474 | Q87: 8340.545236 | R87: 21371.00045 | S87: 15413.39666 | T87: 29644.34558
M88: 81 | N88: 100802.3521 | O88: 11117.43495 | P88: 13117.79713 | Q88: 7758.764248 | R88: 22092.43481 | S88: 15639.20357 | T88: 30060.57669
M89: 82 | N89: 98268.07294 | O89: 11311.89843 | P89: 12363.86539 | Q89: 6846.532068 | R89: 22273.83019 | S89: 15601.14154 | T89: 28798.55304
M90: 83 | N90: 99493.03505 | O90: 11476.5227 | P90: 12639.81997 | Q90: 7489.039245 | R90: 20999.27283 | S90: 15523.45814 | T90: 30418.80997
M91: 84 | N91: 98871.92792 | O91: 11400.87605 | P91: 11800.57599 | Q91: 7373.508171 | R91: 22284.37004 | S91: 15720.08409 | T91: 29532.70784
M92: 85 | N92: 97242.78117 | O92: 11311.83188 | P92: 11647.15904 | Q92: 7308.545894 | R92: 21106.84068 | S92: 15670.06454 | T92: 29177.9033
M93: 86 | N93: 99260.39402 | O93: 10972.10194 | P93: 13535.18927 | Q93: 7096.639678 | R93: 22318.04151 | S93: 15796.33216 | T93: 28650.16675
M94: 87 | N94: 100459.8683 | O94: 11284.059 | P94: 12729.54917 | Q94: 7732.212436 | R94: 22127.60888 | S94: 15394.26891 | T94: 30202.35304
M95: 88 | N95: 98752.19729 | O95: 11545.46491 | P95: 11624.92005 | Q95: 7429.592895 | R95: 21597.1351 | S95: 15660.30096 | T95: 29815.56858
M96: 89 | N96: 99467.02466 | O96: 11055.45612 | P96: 13073.61802 | Q96: 8153.40817 | R96: 21180.39195 | S96: 15880.738 | T96: 29197.01412
M97: 90 | N97: 99162.82993 | O97: 10959.11855 | P97: 13438.21425 | Q97: 7720.348628 | R97: 21388.16966 | S97: 15329.861 | T97: 29496.04851
M98: 91 | N98: 97856.5373 | O98: 11283.40271 | P98: 11319.27318 | Q98: 8106.029773 | R98: 21450.60479 | S98: 15769.28533 | T98: 28727.20255
M99: 92 | N99: 97667.11155 | O99: 10959.8016 | P99: 12518.72613 | Q99: 7280.324021 | R99: 20784.24205 | S99: 15165.91399 | T99: 30110.04444
M100: 93 | N100: 100653.6073 | O100: 11160.43748 | P100: 12808.72475 | Q100: 7173.16257 | R100: 23963.57373 | S100: 15511.25339 | T100: 29139.80592
M101: 94 | N101: 97621.91643 | O101: 11032.15644 | P101: 12054.57289 | Q101: 7505.698837 | R101: 20893.30717 | S101: 15934.51735 | T101: 29095.48094
M102: 95 | N102: 100748.075 | O102: 11178.75664 | P102: 13285.19139 | Q102: 8123.61794 | R102: 21616.65331 | S102: 16232.08422 | T102: 29404.23321
M103: 96 | N103: 101801.0502 | O103: 10930.86929 | P103: 11840.85006 | Q103: 7956.672256 | R103: 24302.90242 | S103: 15968.09977 | T103: 29771.48376
M104: 97 | N104: 97200.41145 | O104: 11406.79713 | P104: 12167.68096 | Q104: 7166.494786 | R104: 20594.92048 | S104: 15606.79661 | T104: 29302.89809
M105: 98 | N105: 98996.33271 | O105: 11228.07827 | P105: 12647.49328 | Q105: 7126.2772 | R105: 21953.78632 | S105: 14604.15399 | T105: 30310.38482
M106: 99 | N106: 97792.26549 | O106: 11124.04772 | P106: 12414.26433 | Q106: 8082.496881 | R106: 20578.20666 | S106: 15049.7949 | T106: 29690.708
M107: 100 | N107: 96850.85685 | O107: 10930.27429 | P107: 11507.66531 | Q107: 7913.874293 | R107: 20812.32078 | S107: 15581.35529 | T107: 29039.4472
M108: 101 | N108: 99129.6139 | O108: 10932.05869 | P108: 11873.4331 | Q108: 8036.015982 | R108: 22620.44113 | S108: 15553.06992 | T108: 29038.18878
M109: 102 | N109: 100652.0805 | O109: 11285.2964 | P109: 12385.60997 | Q109: 7156.132958 | R109: 22756.55575 | S109: 15646.55266 | T109: 30213.62985
M110: 103 | N110: 97871.13328 | O110: 11203.13764 | P110: 12425.03587 | Q110: 7546.407162 | R110: 21024.16456 | S110: 15655.91001 | T110: 28905.64469
M111: 104 | N111: 100587.1291 | O111: 11183.72427 | P111: 13124.05849 | Q111: 7739.031536 | R111: 22053.50028 | S111: 15815.03732 | T111: 29736.05855
M112: 105 | N112: 97778.62313 | O112: 11021.20959 | P112: 11807.89805 | Q112: 7199.614212 | R112: 21879.57843 | S112: 15483.11178 | T112: 29575.25283
M113: 106 | N113: 100362.701 | O113: 11503.74611 | P113: 12279.59833 | Q113: 7481.114536 | R113: 22956.42958 | S113: 15583.22966 | T113: 29372.88296
M114: 107 | N114: 100196.7624 | O114: 11053.93429 | P114: 12173.57047 | Q114: 6744.003667 | R114: 23878.79568 | S114: 16100.66329 | T114: 29361.50827
M115: 108 | N115: 99999.36753 | O115: 11151.80437 | P115: 12828.33528 | Q115: 7359.836278 | R115: 22349.92786 | S115: 15717.73024 | T115: 29393.13497
M116: 109 | N116: 98601.58834 | O116: 11221.17882 | P116: 11968.45403 | Q116: 7781.297509 | R116: 21058.35016 | S116: 15648.16972 | T116: 29980.75719
M117: 110 | N117: 99474.54805 | O117: 11630.06391 | P117: 12712.73054 | Q117: 7458.231946 | R117: 22537.83092 | S117: 15354.24024 | T117: 28691.32598
M118: 111 | N118: 98753.704 | O118: 10896.20464 | P118: 12729.2973 | Q118: 7688.40552 | R118: 21169.92724 | S118: 14941.35581 | T118: 30281.7984
M119: 112 | N119: 99132.27317 | O119: 11465.97394 | P119: 12654.65595 | Q119: 7503.873359 | R119: 21030.24535 | S119: 15702.2765 | T119: 29871.07309
M120: 113 | N120: 101807.3634 | O120: 11214.08042 | P120: 13128.01504 | Q120: 7313.786248 | R120: 22785.45071 | S120: 16166.9614 | T120: 30089.80364
M121: 114 | N121: 97812.29682 | O121: 11036.17706 | P121: 11937.09932 | Q121: 8178.300986 | R121: 20879.01874 | S121: 15670.61078 | T121: 29161.98914
M122: 115 | N122: 97634.60215 | O122: 11127.55561 | P122: 11112.88036 | Q122: 7600.539004 | R122: 21242.88565 | S122: 16354.56552 | T122: 29109.80037
M123: 116 | N123: 100207.808 | O123: 11002.061 | P123: 13054.32457 | Q123: 7469.100003 | R123: 22056.79918 | S123: 16042.04342 | T123: 29747.07374
M124: 117 | N124: 101193.0193 | O124: 11558.23546 | P124: 12177.80906 | Q124: 8000.839213 | R124: 22682.38552 | S124: 16047.04849 | T124: 29667.55496
M125: 118 | N125: 98953.48757 | O125: 11478.28338 | P125: 11069.27015 | Q125: 7806.417782 | R125: 22588.14543 | S125: 15848.22532 | T125: 29231.46705
M126: 119 | N126: 100206.9965 | O126: 11557.62345 | P126: 13459.45393 | Q126: 8288.531666 | R126: 21048.33578 | S126: 14984.25674 | T126: 30047.40958
M127: 120 | N127: 98387.15257 | O127: 11022.16571 | P127: 12571.65438 | Q127: 8049.679292 | R127: 21348.37151 | S127: 15719.34809 | T127: 28921.2127
M128: 121 | N128: 104534.0809 | O128: 11132.38488 | P128: 14243.08265 | Q128: 8720.664211 | R128: 23928.58829 | S128: 16404.90243 | T128: 29193.28917
M129: 122 | N129: 100554.6658 | O129: 11433.47083 | P129: 12228.25654 | Q129: 7753.130473 | R129: 22422.26258 | S129: 15195.12821 | T129: 30603.0764
M130: 123 | N130: 98491.09752 | O130: 11185.56283 | P130: 12590.55849 | Q130: 7707.448229 | R130: 20875.70066 | S130: 15170.70479 | T130: 29910.20324
M131: 124 | N131: 101258.7248 | O131: 11238.203 | P131: 11988.91043 | Q131: 7513.749867 | R131: 24569.48181 | S131: 15647.27367 | T131: 29309.01008
M132: 125 | N132: 98439.20536 | O132: 11145.11633 | P132: 13321.12617 | Q132: 7733.050448 | R132: 20199.38432 | S132: 15361.73834 | T132: 29681.51574
M133: 126 | N133: 102360.168 | O133: 11535.78184 | P133: 11736.90946 | Q133: 8172.812208 | R133: 23720.06303 | S133: 15654.95165 | T133: 30441.6746
M134: 127 | N134: 96781.06347 | O134: 11120.18918 | P134: 12345.64454 | Q134: 7776.687357 | R134: 20305.08895 | S134: 15641.77802 | T134: 28788.76315
M135: 128 | N135: 101465.4833 | O135: 11164.82102 | P135: 12979.70775 | Q135: 6833.240979 | R135: 23761.81566 | S135: 15744.3607 | T135: 29969.02923
M136: 129 | N136: 98945.36445 | O136: 11403.02288 | P136: 12394.14845 | Q136: 7963.816494 | R136: 21409.9343 | S136: 15729.37028 | T136: 29189.52926
M137: 130 | N137: 96694.08755 | O137: 11013.11644 | P137: 11869.61132 | Q137: 6967.66753 | R137: 20889.1359 | S137: 15367.14056 | T137: 29372.95522
M138: 131 | N138: 97918.14873 | O138: 11304.25476 | P138: 11876.53988 | Q138: 7959.056828 | R138: 20345.31109 | S138: 15480.80549 | T138: 30006.50814
M139: 132 | N139: 99120.67841 | O139: 11503.64767 | P139: 12010.06793 | Q139: 8494.488575 | R139: 20754.00239 | S139: 16207.83067 | T139: 29230.28553
M140: 133 | N140: 101771.6251 | O140: 10932.92104 | P140: 13170.49392 | Q140: 8416.39409 | R140: 23802.53589 | S140: 15439.25404 | T140: 28946.8228
M141: 134 | N141: 96749.04994 | O141: 11068.74375 | P141: 11671.61913 | Q141: 7584.641306 | R141: 20682.70187 | S141: 15187.32 | T141: 29522.92285
M142: 135 | N142: 98598.86286 | O142: 10957.17467 | P142: 11880.00876 | Q142: 7275.242969 | R142: 22216.43551 | S142: 14928.2746 | T142: 30515.55021
M143: 136 | N143: 100345.4864 | O143: 11126.94449 | P143: 12654.90594 | Q143: 7190.751948 | R143: 23188.91685 | S143: 16225.00662 | T143: 28996.29586
M144: 137 | N144: 98738.58199 | O144: 11186.86544 | P144: 11597.47449 | Q144: 6961.454378 | R144: 22295.44829 | S144: 15941.7386 | T144: 29852.86517
M145: 138 | N145: 99532.3492 | O145: 11516.77468 | P145: 12516.68887 | Q145: 7474.585513 | R145: 21572.12618 | S145: 15656.37636 | T145: 29809.07625
M146: 139 | N146: 100894.6026 | O146: 11427.22355 | P146: 11125.96551 | Q146: 7971.438262 | R146: 23961.2048 | S146: 16130.54517 | T146: 29461.33535
M147: 140 | N147: 100511.4391 | O147: 11395.18898 | P147: 13355.78194 | Q147: 7282.30852 | R147: 21445.93056 | S147: 15960.32409 | T147: 29990.13166
M148: 141 | N148: 100820.5626 | O148: 10678.73468 | P148: 12671.69253 | Q148: 7837.892919 | R148: 24123.9389 | S148: 14645.36637 | T148: 30058.19872
M149: 142 | N149: 100821.8014 | O149: 11358.84858 | P149: 12809.23656 | Q149: 7927.48877 | R149: 22500.47901 | S149: 15445.93957 | T149: 29576.67907
M150: 143 | N150: 97621.46664 | O150: 11320.54664 | P150: 11764.57013 | Q150: 7370.901354 | R150: 21408.51726 | S150: 14813.46504 | T150: 30041.56974
M151: 144 | N151: 98535.03189 | O151: 11820.20437 | P151: 11789.93937 | Q151: 7386.779114 | R151: 21429.70329 | S151: 15471.7472 | T151: 29366.88977
M152: 145 | N152: 98367.16167 | O152: 10930.33286 | P152: 11842.2675 | Q152: 7025.754656 | R152: 22345.26732 | S152: 14989.36759 | T152: 30103.19654
M153: 146 | N153: 101675.1428 | O153: 10988.51198 | P153: 11213.35064 | Q153: 7789.53408 | R153: 24296.47621 | S153: 15212.62372 | T153: 31168.27443
M154: 147 | N154: 99345.51164 | O154: 11477.9984 | P154: 13524.68649 | Q154: 7815.617779 | R154: 20704.12852 | S154: 14955.53389 | T154: 30000.20069
M155: 148 | N155: 98189.21448 | O155: 11431.06078 | P155: 11474.82382 | Q155: 7628.740437 | R155: 20942.43152 | S155: 15563.56121 | T155: 30053.81742
M156: 149 | N156: 100169.8506 | O156: 11069.01615 | P156: 11962.2844 | Q156: 8345.675762 | R156: 22548.28047 | S156: 15369.89306 | T156: 29914.5604
M157: 150 | N157: 101391.4917 | O157: 11322.78029 | P157: 11613.9982 | Q157: 8404.013583 | R157: 23241.00779 | S157: 15186.16553 | T157: 30397.03926
M158: 151 | N158: 98181.88362 | O158: 11225.65644 | P158: 11418.73743 | Q158: 7459.967904 | R158: 21766.66162 | S158: 15332.87396 | T158: 29958.72791
M159: 152 | N159: 97810.08348 | O159: 11475.37569 | P159: 11582.83956 | Q159: 7397.919023 | R159: 21135.54328 | S159: 15219.26041 | T159: 29773.52562
M160: 153 | N160: 99546.20354 | O160: 11112.30445 | P160: 12304.40625 | Q160: 7730.566867 | R160: 21551.89497 | S160: 15987.94858 | T160: 29783.95068
M161: 154 | N161: 98886.37255 | O161: 10990.99305 | P161: 12219.17302 | Q161: 7715.07384 | R161: 21570.34248 | S161: 14931.28847 | T161: 30347.45921
M162: 155 | N162: 99301.65435 | O162: 11284.59575 | P162: 12454.3307 | Q162: 7672.650901 | R162: 21371.28971 | S162: 15426.69679 | T162: 29893.86657
M163: 156 | N163: 101406.8633 | O163: 11956.57146 | P163: 12529.27528 | Q163: 7474.616646 | R163: 22941.75448 | S163: 16188.16714 | T163: 29351.94115
M164: 157 | N164: 101030.8019 | O164: 11215.4065 | P164: 11990.8173 | Q164: 7928.959632 | R164: 22521.49185 | S164: 15168.62009 | T164: 31113.54451
M165: 158 | N165: 100239.3846 | O165: 10994.77736 | P165: 12316.26227 | Q165: 8332.864598 | R165: 21360.58758 | S165: 16192.73754 | T165: 29861.3651
M166: 159 | N166: 99136.5058 | O166: 10909.22364 | P166: 12001.23422 | Q166: 7380.605588 | R166: 22213.36613 | S166: 16248.37331 | T166: 29309.59981
M167: 160 | N167: 96279.47625 | O167: 11098.48266 | P167: 11803.08524 | Q167: 7365.819438 | R167: 20640.11415 | S167: 15076.80156 | T167: 29484.40334
M168: 161 | N168: 97818.97169 | O168: 11590.24556 | P168: 12450.67751 | Q168: 6952.098521 | R168: 20636.6695 | S168: 14778.42413 | T168: 30423.32387
M169: 162 | N169: 100065.0101 | O169: 11216.41121 | P169: 12802.60081 | Q169: 7158.018512 | R169: 21400.31643 | S169: 16053.89437 | T169: 30265.03902
M170: 163 | N170: 99796.77526 | O170: 10934.8672 | P170: 11966.06064 | Q170: 8173.34747 | R170: 22660.63154 | S170: 15718.32906 | T170: 29227.51834
M171: 164 | N171: 103509.1097 | O171: 11063.06351 | P171: 12974.53977 | Q171: 7260.357805 | R171: 24562.52459 | S171: 15985.55567 | T171: 30823.07687
M172: 165 | N172: 97343.8906 | O172: 10744.7138 | P172: 11965.55719 | Q172: 7954.365348 | R172: 20326.60676 | S172: 15254.6071 | T172: 30241.56518
M173: 166 | N173: 99599.35682 | O173: 10504.684 | P173: 12552.40293 | Q173: 7582.103673 | R173: 22731.3966 | S173: 16338.88665 | T173: 28918.76458
M174: 167 | N174: 100265.3716 | O174: 11042.33018 | P174: 13477.40296 | Q174: 8388.416766 | R174: 21406.30189 | S174: 15141.05868 | T174: 29671.96689
M175: 168 | N175: 95926.83229 | O175: 10721.53768 | P175: 11835.91301 | Q175: 7492.672271 | R175: 20867.33751 | S175: 15327.82671 | T175: 28566.67745
M176: 169 | N176: 99940.67364 | O176: 11114.65348 | P176: 12225.25339 | Q176: 7773.813349 | R176: 22453.85887 | S176: 15278.23729 | T176: 30086.94052
M177: 170 | N177: 98247.48343 | O177: 11083.9833 | P177: 12221.81517 | Q177: 7395.102952 | R177: 20822.89874 | S177: 16361.6935 | T177: 29471.43927
M178: 171 | N178: 102114.6856 | O178: 11371.2051 | P178: 12845.8933 | Q178: 7781.789082 | R178: 24902.78069 | S178: 15002.82136 | T178: 29139.89409
M179: 172 | N179: 99570.58704 | O179: 10771.33249 | P179: 11213.98413 | Q179: 7568.715754 | R179: 24366.69036 | S179: 15907.66186 | T179: 28909.74698
M180: 173 | N180: 100876.8831 | O180: 11432.56008 | P180: 12371.18133 | Q180: 7345.905672 | R180: 23181.52211 | S180: 16342.9191 | T180: 29213.58187
M181: 174 | N181: 100617.2258 | O181: 11338.03093 | P181: 12216.31173 | Q181: 7266.613968 | R181: 23456.63446 | S181: 15435.16571 | T181: 30128.76957
M182: 175 | N182: 100337.6813 | O182: 11727.40736 | P182: 12839.27194 | Q182: 7711.898636 | R182: 21465.7027 | S182: 16252.03138 | T182: 29436.48534
M183: 176 | N183: 99480.29831 | O183: 10956.8427 | P183: 12217.75251 | Q183: 7894.199754 | R183: 21833.63431 | S183: 15327.82182 | T183: 30187.80675
M184: 177 | N184: 97262.14687 | O184: 11682.26309 | P184: 12221.41085 | Q184: 7323.016975 | R184: 20920.35404 | S184: 14929.69629 | T184: 29343.2791
M185: 178 | N185: 98585.66954 | O185: 10852.62171 | P185: 11565.2183 | Q185: 7593.405237 | R185: 22445.68871 | S185: 15889.57446 | T185: 29296.50003
M186: 179 | N186: 96849.22361 | O186: 11428.01026 | P186: 11356.42948 | Q186: 7353.257755 | R186: 20614.62056 | S186: 15099.51494 | T186: 30132.10123
M187: 180 | N187: 98372.67691 | O187: 11218.97328 | P187: 11778.84815 | Q187: 7776.224849 | R187: 21658.50693 | S187: 15218.12931 | T187: 29930.12229
M188: 181 | N188: 98903.43479 | O188: 11322.86453 | P188: 11994.04287 | Q188: 8151.79044 | R188: 21543.2477 | S188: 15479.84441 | T188: 29184.92976
M189: 182 | N189: 99398.3813 | O189: 11477.58657 | P189: 13015.65153 | Q189: 7553.797663 | R189: 20532.26831 | S189: 15487.89025 | T189: 30287.68474
M190: 183 | N190: 99698.51097 | O190: 12006.36125 | P190: 12477.84792 | Q190: 8047.490598 | R190: 20546.79691 | S190: 15879.76114 | T190: 29786.99018
M191: 184 | N191: 98820.24491 | O191: 11321.20035 | P191: 12226.53903 | Q191: 7201.488841 | R191: 21036.38562 | S191: 15792.13073 | T191: 30170.37637
M192: 185 | N192: 99038.78494 | O192: 11312.61077 | P192: 11902.85961 | Q192: 7490.768145 | R192: 23299.3542 | S192: 15122.70273 | T192: 28891.83844
M193: 186 | N193: 99022.68616 | O193: 11406.22824 | P193: 12955.70472 | Q193: 7320.843398 | R193: 21958.32613 | S193: 14758.89947 | T193: 29602.73607
M194: 187 | N194: 98583.51552 | O194: 11168.51015 | P194: 11741.98924 | Q194: 6990.303892 | R194: 22825.76672 | S194: 15069.71733 | T194: 29974.56947
M195: 188 | N195: 97651.96263 | O195: 11321.12787 | P195: 11494.62527 | Q195: 6855.685106 | R195: 22029.8258 | S195: 15354.80711 | T195: 29753.43813
M196: 189 | N196: 100942.6067 | O196: 11476.43744 | P196: 12493.2074 | Q196: 7675.997265 | R196: 21766.70949 | S196: 15897.10172 | T196: 30657.25935
M197: 190 | N197: 100430.7832 | O197: 11250.04586 | P197: 13160.92735 | Q197: 7677.353563 | R197: 22477.36535 | S197: 15268.96459 | T197: 29830.34792
M198: 191 | N198: 98762.92778 | O198: 11358.28882 | P198: 11903.69491 | Q198: 7325.408775 | R198: 22382.46292 | S198: 15415.1446 | T198: 29416.12363
M199: 192 | N199: 98217.68694 | O199: 11230.88583 | P199: 12881.26861 | Q199: 7289.550767 | R199: 21922.19542 | S199: 14663.81266 | T199: 29334.27952
M200: 193 | N200: 100433.1607 | O200: 11404.22397 | P200: 11858.10299 | Q200: 7057.065762 | R200: 22673.88013 | S200: 16052.03144 | T200: 30206.37116
M201: 194 | N201: 99154.36842 | O201: 11265.78869 | P201: 13120.38361 | Q201: 7502.598113 | R201: 21190.21518 | S201: 15459.54071 | T201: 29732.48463
... 807 more rows

Sheet Simulation results (hidden)
A2: Mean of total cost | B2: =AVERAGE('Model and simulation'!N8:N1007) -> 99506.58198
A4: There is a | B4: =COUNTIF('Model and simulation'!$N$8:$N$1007, ">"&'Simulation results'!D4)/1000 -> 0.616 | C4: probability that total cost will exceed our budget of | D4: 99000
A5: There is a | B5: =COUNTIF('Model and simulation'!$N$8:$N$1007, ">"&'Simulation results'!D5)/1000 -> 0.958 | C5: probability that total cost will exceed the "base-case" total of | D5: 97000
A7: Percentiles (total cost)
A8: 0.05 | B8: =_xlfn.PERCENTILE.INC('Model and simulation'!$N$8:$N$1007,'Simulation results'!A8) -> 97152.56366
A9: 0.25 | B9: =_xlfn.PERCENTILE.INC('Model and simulation'!$N$8:$N$1007,'Simulation results'!A9) -> 98427.62158
A10: 0.5 | B10: =_xlfn.PERCENTILE.INC('Model and simulation'!$N$8:$N$1007,'Simulation results'!A10) -> 99404.17683
A11: 0.75 | B11: =_xlfn.PERCENTILE.INC('Model and simulation'!$N$8:$N$1007,'Simulation results'!A11) -> 100458.5199
A12: 0.95 | B12: =_xlfn.PERCENTILE.INC('Model and simulation'!$N$8:$N$1007,'Simulation results'!A12) -> 102197.1221
A15: Analysis questions
A16: (1) Create a box-whisker plot showing the simulation results for the six work packages (ignore the column for total cost). Place the graph in the shaded area to the right.
A17: Which work package is fairly costly and also (in raw dollar terms) shows a lot of variability?
A18: (You would want to know this because, as the project progresses, it would be a good idea to monitor more closely work packages that meet this description.)
A19: Press F9 a few times and watch the box-whisker plot update before you choose an answer.
B20: Interior finishes
A22: (2) "We can afford to be wrong in our planning sometimes, but we can't be wrong all of the time" is an observation that captures one reason to use Monte Carlo simulation.
A23: We have budgeted $99,000. You should already have found that there is a good chance that the total cost will be more than this, that we will exhaust the $99,000.
A24: But--it would be wasteful to try to budget for the absolute maximum cost. The project will almost certainly not cost that much, and there are other opportunities that we could use that money to invest in.
A25: So--say we can tolerate a 20% chance of running out of funds. How much in addition to the $99,000 do we need, to be 80% confident that we can successfully fund this project?
A26: Do whatever preliminary calculations are necessary wherever you like, and then enter the final calculation in the shaded cell. (In project risk management, this would commonly be called the "contingency required for 80% confidence.")
... 1 more rows

Sheet Question options (hidden)
A1: Choose from the options below.
A2: Site work
A3: Foundations
A4: Framing
A5: Exterior finishes
A6: Major systems
A7: Interior finishes

Sheet .
D4: Please Enable Macros

Sheet Times (hidden)
A1: Username | B1: Class # | C1: Semester | D1: GP # | E1: Started | F1: Stopped | G1: Pts Earned | H1: Excel Version | I1: Documenation Username | J1: OS Version | K1: File Size On Open | L1: File Size On Close | M1: Filepath On Open | N1: Filepath On Close
A2: RASHAR | B2: P5b | C2: Spring 2020 | D2: 5a | E2: 2020-06-19T12:07:08 | F2: 2020-06-19T13:50:16 | H2: 16.38 | I2: RASHAR | J2: Macintosh (Intel) Version 10.15.4 (Build 19E287) | K2: 0 | L2: 0 | M2: /Users/raunavsharma/Downloads\K303_SU20_Project5_Problem1.xlsm | N2: /Users/raunavsharma/Downloads\K303_SU20_Project5_Problem1.xlsm
A3: RASHAR | B3: P5b | C3: Spring 2020 | D3: 5a | E3: 2020-06-19T16:39:43 | F3: 2020-06-19T16:43:52 | H3: 16.38 | I3: RASHAR | J3: Macintosh (Intel) Version 10.15.4 (Build 19E287) | K3: 0 | L3: 0 | M3: /Users/raunavsharma/Downloads\K303_SU20_Project5_Problem1.xlsm | N3: /Users/raunavsharma/Downloads\K303_SU20_Project5_Problem1.xlsm

Sheet IDSheet (hidden)
E2: Spring 2020
E3: 5a
D4: Username | E4: RASHAR
D5: Classname | E5: P5b
D12: # of Attempts | E12: 2
DMB2014: RASHAR | DMC2014: P5b | DMD2014: Spring 2020 | DME2014: 5a | DMF2014: 2020-06-19T12:07:08 | DMG2014: 2020-06-19T13:50:16 | DMI2014: 16.38 | DMJ2014: RASHAR | DMK2014: Macintosh (Intel) Version 10.15.4 (Build 19E287) | DML2014: 0 | DMM2014: 0 | DMN2014: /Users/raunavsharma/Downloads\K303_SU20_Project5_Problem1.xlsm
DMB2015: RASHAR | DMC2015: P5b | DMD2015: Spring 2020 | DME2015: 5a | DMF2015: 2020-06-19T16:39:43 | DMG2015: 2020-06-19T16:39:43 | DMI2015: 16.38 | DMK2015: Macintosh (Intel) Version 10.15.4 (Build 19E287) | DML2015: 0 | DMN2015: /Users/raunavsharma/Downloads\K303_SU20_Project5_Problem1.xlsm
